bitfinex/quotes_BTCUSD_20250131
["timestamp","ask_amount","ask_price","bid_price","bid_amount"]
[1738346786457,0.98264651,104610.0,104600.0,0.00560995]
[1738346786792,0.99164651,104610.0,104600.0,0.00560995]
[1738346791868,1.49164651,104610.0,104600.0,0.00560995]
[1738346792057,1.99164651,104610.0,104600.0,0.00560995]
[1738346792533,1.67274751,104610.0,104600.0,0.14901295]
[1738346792778,1.67274751,104610.0,104600.0,0.22965908]
[1738346793037,1.67274751,104610.0,104600.0,0.14901295]
[1738346793306,1.67274751,104610.0,104600.0,0.23226396]
[1738346793583,1.67274751,104610.0,104600.0,0.22965908]
[1738346793839,1.67274751,104610.0,104600.0,0.14901295]
[1738346794737,1.67274751,104610.0,104600.0,0.00560995]
[1738346795772,1.72124751,104610.0,104600.0,0.00560995]
[1738346795979,1.63585406,104610.0,104600.0,0.00560995]
[1738346800826,1.84124476,104610.0,104600.0,0.00560995]
[1738346801028,1.71835406,104610.0,104600.0,0.00684262]
[1738346804346,1.80374751,104610.0,104600.0,0.00684262]
[1738346807127,1.47514751,104610.0,104600.0,0.00684262]
[1738346807777,1.49416249,104610.0,104600.0,0.00684262]
[1738346807973,1.47514751,104610.0,104600.0,0.00684262]
[1738346808423,1.57250427,104610.0,104600.0,0.00684262]
[1738346809480,1.47514751,104610.0,104600.0,0.00684262]
[1738346811947,1.38975406,104610.0,104600.0,0.00684262]
[1738346819369,1.38945113,104610.0,104600.0,0.00684262]
[1738346821095,1.47010093,104610.0,104600.0,0.00684262]
[1738346822121,1.45210093,104610.0,104600.0,0.00584262]
[1738346822339,1.46110093,104610.0,104600.0,0.00584262]
[1738346822659,1.38945113,104610.0,104600.0,0.00684262]
[1738346823427,1.48680789,104610.0,104600.0,0.00684262]
[1738346823808,0.143417,104590.0,104580.0,0.10522199]
[1738346824026,0.24066016,104590.0,104580.0,0.10522199]
[1738346825045,0.24966016,104590.0,104580.0,0.10522199]
[1738346825249,0.25866016,104590.0,104580.0,0.10522199]
[1738346826442,0.25866016,104590.0,104580.0,0.11557536]
[1738346826632,0.58726016,104590.0,104580.0,0.11557536]
[1738346826843,0.60346,104590.0,104580.0,0.11557536]
[1738346827503,0.60346,104590.0,104580.0,0.11809583]
[1738346827934,0.68266,104590.0,104580.0,0.11809583]
[1738346828138,0.73146,104590.0,104580.0,0.11809583]
[1738346828485,0.73146,104590.0,104580.0,0.10774246]
[1738346829350,0.71526016,104590.0,104580.0,0.10774246]
[1738346830148,0.80079361,104590.0,104580.0,0.10774246]
[1738346830903,0.80723361,104590.0,104580.0,0.10774246]
[1738346831483,0.80723361,104590.0,104580.0,0.11065401]
[1738346832478,0.82607112,104590.0,104580.0,0.11065401]
[1738346832683,0.82607112,104590.0,104580.0,0.10944689]
[1738346832884,0.92342788,104590.0,104580.0,0.10944689]
[1738346839651,1.04633515,104590.0,104580.0,0.10944689]
[1738346840307,0.71773515,104590.0,104580.0,0.10944689]
[1738346841955,0.71773515,104590.0,104580.0,0.12875711]
[1738346842139,0.75028489,104590.0,104580.0,0.12875711]
[1738346842559,0.71773515,104590.0,104580.0,0.12875711]
[1738346844011,0.6322017,104590.0,104580.0,0.12875711]
[1738346844478,0.6232017,104590.0,104580.0,0.12875711]
[1738346844678,0.6142017,104590.0,104580.0,0.12875711]
[1738346844942,0.6322017,104590.0,104580.0,0.12875711]
[1738346845143,0.6232017,104590.0,104580.0,0.12875711]
[1738346846183,0.50029443,104590.0,104580.0,0.12875711]
[1738346846780,0.39649767,104590.0,104580.0,0.12875711]
[1738346846966,0.40289767,104590.0,104580.0,0.12875711]
[1738346847981,0.41189767,104590.0,104580.0,0.12875711]
[1738346849545,0.41189767,104590.0,104580.0,0.10944689]
[1738346850000,0.53480494,104590.0,104580.0,0.10944689]
[1738346850169,0.6321617,104590.0,104580.0,0.00448089]
[1738346851383,0.53379145,104590.0,104580.0,0.00448089]
[1738346852434,0.143444,104570.0,104560.0,0.0010062]
[1738346852786,0.24068716,104570.0,104560.0,0.0010062]
[1738346853584,0.24968716,104570.0,104560.0,0.0010062]
[1738346853771,0.25468716,104570.0,104560.0,0.0010062]
[1738346856026,0.25468716,104570.0,104560.0,0.01998428]
[1738346860054,0.25468716,104570.0,104560.0,0.02306625]
[1738346864910,0.25468716,104570.0,104560.0,0.22317213]
[1738346865083,0.25468716,104570.0,104560.0,0.40940501]
[1738346865269,0.25468716,104570.0,104560.0,0.32871463]
[1738346865819,0.11124316,104570.0,104560.0,0.30973655]
[1738346866021,0.25468716,104570.0,104560.0,0.30973655]
[1738346866183,0.11124316,104570.0,104560.0,0.30973655]
[1738346866386,0.014,104570.0,104560.0,0.30973655]
[1738346866591,0.014,104570.0,104560.0,0.43682693]
[1738346867883,0.08543238,104580.0,104560.0,0.35532693]
[1738346868087,0.18267554,104580.0,104570.0,0.30483438]
[1738346868469,0.09724316,104580.0,104570.0,0.30782489]
[1738346868703,0.09724316,104580.0,104570.0,0.40401634]
[1738346868904,0.09724316,104580.0,104570.0,0.44622306]
[1738346869441,0.10224316,104580.0,104570.0,0.44622306]
[1738346869843,0.11124316,104580.0,104570.0,0.35003161]
[1738346872668,0.014,104580.0,104570.0,0.39643161]
[1738346872953,0.014,104580.0,104570.0,0.49378837]
[1738346878760,0.014122,104580.0,104570.0,0.39643161]
[1738346880376,0.33739516,104580.0,104570.0,0.00299051]
[1738346880579,0.38399516,104580.0,104570.0,0.00299051]
[1738346880787,0.143444,104570.0,104560.0,0.0010062]
[1738346880994,0.31818716,104570.0,104560.0,0.00408817]
[1738346884180,0.32318716,104570.0,104560.0,0.00408817]
[1738346884401,0.33218716,104570.0,104560.0,0.00408817]
[1738346884820,0.66078716,104570.0,104560.0,0.00408817]
[1738346887834,0.42954392,104570.0,104560.0,0.00408817]
[1738346888579,0.33218716,104570.0,104560.0,0.00408817]
[1738346890887,0.33218716,104570.0,104560.0,0.14754617]
[1738346891309,0.11124316,104570.0,104560.0,0.27044327]
[1738346891972,0.11136516,104570.0,104560.0,0.27044327]
[1738346892366,0.11136516,104570.0,104560.0,0.36780003]
[1738346893941,0.11136516,104570.0,104560.0,0.27044327]
[1738346895684,0.11136516,104570.0,104560.0,0.14754617]
[1738346895942,0.37980916,104570.0,104560.0,0.00408817]
[1738346896150,0.11136516,104570.0,104560.0,0.27044327]
[1738346896580,0.11136516,104570.0,104560.0,0.14754617]
[1738346896792,0.38490916,104570.0,104560.0,0.00408817]
[1738346900791,0.38490916,104570.0,104560.0,0.14754617]
[1738346900986,0.11136516,104570.0,104560.0,0.27044327]
[1738346904913,0.014122,104570.0,104560.0,0.34854327]
[1738346906395,0.005122,104570.0,104560.0,0.34854327]
[1738346907148,0.005122,104570.0,104560.0,0.27044327]
[1738346907535,0.000122,104570.0,104560.0,0.27044327]
[1738346908736,0.09736516,104570.0,104560.0,0.27044327]
[1738346910401,0.09736516,104570.0,104560.0,0.14754617]
[1738346910740,0.17956516,104570.0,104560.0,0.14754617]
[1738346910914,0.17956516,104570.0,104560.0,0.27044327]
[1738346911158,0.22656516,104570.0,104560.0,0.14754617]
[1738346911358,0.37000916,104570.0,104560.0,0.14754617]
[1738346912924,0.37000916,104570.0,104560.0,0.14805385]
[1738346916481,0.37000916,104570.0,104560.0,0.27095095]
[1738346920256,0.22656516,104570.0,104560.0,0.27095095]
[1738346921196,0.37000916,104570.0,104560.0,0.27095095]
[1738346922566,0.22656516,104570.0,104560.0,0.29792285]
[1738346922781,0.14436516,104570.0,104560.0,0.29792285]
[1738346923494,0.14436516,104570.0,104560.0,0.27095095]
[1738346923692,0.09736516,104570.0,104560.0,0.27095095]
[1738346923894,0.000122,104570.0,104560.0,0.27095095]
[1738346924274,0.17696516,104570.0,104560.0,0.27095095]
[1738346924500,0.17696516,104570.0,104560.0,0.14805385]
[1738346924721,0.17696516,104570.0,104560.0,0.27095095]
[1738346924876,0.17696516,104570.0,104560.0,0.14805385]
[1738346925856,0.17696516,104570.0,104560.0,0.27095095]
[1738346929845,0.09736516,104570.0,104560.0,0.27095095]
[1738346936790,0.000122,104570.0,104560.0,0.27095095]
[1738346937021,0.000122,104570.0,104560.0,0.41330771]
[1738346941739,0.000122,104570.0,104560.0,0.36830771]
[1738346950571,0.000122,104570.0,104560.0,0.40670457]
[1738346954091,0.000122,104570.0,104560.0,0.48735155]
[1738346954288,0.000122,104570.0,104560.0,0.5171983]
[1738346955499,0.000122,104570.0,104560.0,0.5181983]
[1738346956855,0.000122,104570.0,104560.0,0.5201983]
[1738346961241,1e-06,104570.0,104560.0,0.77434146]
[1738346961438,1e-06,104570.0,104560.0,0.77334146]
[1738346961639,1e-06,104570.0,104560.0,0.77134146]
[1738346961806,1e-06,104570.0,104560.0,0.77334146]
[1738346962989,1e-06,104570.0,104560.0,0.77834146]
[1738346963191,1e-06,104570.0,104560.0,0.6170475]
[1738346965180,1e-06,104570.0,104560.0,0.36290434]
[1738346966160,1e-06,104570.0,104560.0,0.38290434]
[1738346966672,1e-06,104570.0,104560.0,0.30225736]
[1738346968369,1e-06,104570.0,104560.0,0.31225736]
[1738346968620,1e-06,104570.0,104560.0,0.40950052]
[1738346968828,1e-06,104570.0,104560.0,0.48860052]
[1738346970117,1e-06,104570.0,104560.0,0.48919644]
[1738346971027,1e-06,104570.0,104560.0,0.59219644]
[1738346974742,1e-06,104580.0,104570.0,0.39920596]
[1738346974937,1e-06,104580.0,104570.0,0.67015263]
[1738346975272,1e-06,104580.0,104570.0,0.67490471]
[1738346976892,1e-06,104580.0,104570.0,0.67790471]
[1738346977335,0.001001,104580.0,104570.0,0.68590471]
[1738346978586,1e-06,104580.0,104570.0,0.70590471]
[1738346981063,1e-06,104580.0,104570.0,0.78660471]
[1738346982202,1e-06,104580.0,104570.0,0.787165]
[1738346987845,1e-06,104590.0,104580.0,0.17343]
[1738346988057,1e-06,104590.0,104580.0,0.64746295]
[1738346988405,1e-06,104590.0,104580.0,0.65171173]
[1738346988812,1e-06,104590.0,104580.0,0.68996573]
[1738346989029,1e-06,104590.0,104580.0,0.69496573]
[1738346992415,1e-06,104590.0,104580.0,0.69696573]
[1738346998510,0.1230219,104600.0,104590.0,0.03]
[1738346998511,9e-07,104600.0,104590.0,0.03]
[1738346998714,0.0763,104610.0,104590.0,0.62227846]
[1738346998918,0.0488,104620.0,104610.0,0.143389]
[1738346999142,0.3287219,104640.0,104620.0,0.143376]
[1738346999338,0.3287219,104640.0,104620.0,0.26721259]
[1738346999599,0.3287219,104640.0,104620.0,0.26625698]
[1738346999752,0.3287219,104640.0,104620.0,0.44656843]
[1738347000095,9e-07,104630.0,104620.0,0.45656843]
[1738347000323,9e-07,104630.0,104620.0,0.57381159]
[1738347000732,0.31160492,104680.0,104670.0,0.143307]
[1738347000931,0.24053616,104680.0,104670.0,0.1576377]
[1738347001898,0.31783616,104680.0,104670.0,0.1576377]
[1738347002096,0.17454316,104680.0,104670.0,0.1576377]
[1738347002414,0.22044316,104680.0,104670.0,0.16136257]
[1738347002644,0.22044316,104680.0,104670.0,0.00372487]
[1738347002645,0.48661714,104680.0,104670.0,0.00372487]
[1738347002852,0.51640219,104680.0,104670.0,0.00372487]
[1738347003082,0.1231,104660.0,104650.0,0.334429]
[1738347003293,0.22034316,104660.0,104650.0,0.334429]
[1738347004171,0.22034316,104660.0,104650.0,0.45730998]
[1738347004389,0.22034316,104660.0,104650.0,0.55466674]
[1738347005272,0.22034316,104660.0,104650.0,0.43178576]
[1738347005701,0.1291,104660.0,104650.0,0.55566674]
[1738347005853,0.1381,104660.0,104650.0,0.55666674]
[1738347006083,0.23534316,104660.0,104650.0,0.43378576]
[1738347006263,0.23534316,104660.0,104650.0,0.43754714]
[1738347006673,0.23534316,104660.0,104650.0,0.43781163]
[1738347008823,0.23534316,104660.0,104650.0,0.56069261]
[1738347010069,0.1381,104660.0,104650.0,0.56069261]
[1738347011474,0.1381,104660.0,104650.0,0.60846961]
[1738347014484,0.015,104660.0,104650.0,0.60846961]
[1738347014691,0.015,104660.0,104650.0,0.62753783]
[1738347015122,0.009,104660.0,104650.0,0.85666197]
[1738347015330,0.0789,104670.0,104660.0,0.143321]
[1738347015548,0.0789,104670.0,104660.0,0.34831421]
[1738347015760,0.0789,104670.0,104660.0,0.35136634]
[1738347016387,0.0789,104670.0,104660.0,0.47424732]
[1738347016590,0.1223219,104680.0,104670.0,0.143307]
[1738347016816,0.1223219,104680.0,104670.0,0.39002419]
[1738347016997,0.1223219,104680.0,104670.0,0.45876553]
[1738347018369,0.0001219,104680.0,104670.0,0.45876553]
[1738347018568,0.0001219,104680.0,104670.0,0.58607691]
[1738347018749,0.0001219,104680.0,104670.0,0.60607691]
[1738347019105,9e-07,104680.0,104670.0,0.68717691]
[1738347019346,9e-07,104680.0,104670.0,0.69090178]
[1738347019865,9e-07,104680.0,104670.0,0.68990178]
[1738347020298,9e-07,104680.0,104670.0,0.69390178]
[1738347021501,9e-07,104680.0,104670.0,0.68990178]
[1738347021701,0.0010009,104680.0,104670.0,0.69890178]
[1738347023439,0.0010009,104680.0,104670.0,0.69990178]
[1738347023851,9e-07,104680.0,104670.0,0.69990178]
[1738347024061,9e-07,104680.0,104670.0,0.69890178]
[1738347024276,9e-07,104680.0,104670.0,0.70290178]
[1738347025412,0.0001221,104700.0,104690.0,0.14328]
[1738347025605,0.0001221,104700.0,104690.0,0.50233479]
[1738347025802,0.0001221,104700.0,104690.0,0.50137986]
[1738347026462,0.0001221,104700.0,104690.0,0.28125572]
[1738347026678,0.0486221,104700.0,104690.0,0.28125572]
[1738347027285,0.1271221,104700.0,104690.0,0.28225572]
[1738347028474,0.1271221,104700.0,104690.0,0.28625572]
[1738347029053,0.12703435,104700.0,104690.0,0.28625572]
[1738347030115,3.435e-05,104700.0,104690.0,0.28625572]
[1738347031160,0.08113435,104700.0,104690.0,0.28625572]
[1738347031571,0.08113435,104700.0,104690.0,0.2868577]
[1738347031838,0.12653435,104700.0,104690.0,0.28625572]
[1738347032965,0.12653435,104700.0,104690.0,0.28225572]
[1738347033165,0.12653435,104700.0,104690.0,0.28325572]
[1738347033867,0.12653435,104700.0,104690.0,0.28225572]
[1738347034085,0.12653435,104700.0,104690.0,0.28285839]
[1738347035711,0.08113435,104700.0,104690.0,0.40573937]
[1738347035907,0.08113435,104700.0,104690.0,0.4051367]
[1738347036291,0.08113435,104700.0,104690.0,0.28225572]
[1738347036515,0.08113435,104700.0,104690.0,0.28366547]
[1738347037444,0.08113435,104700.0,104690.0,0.28285734]
[1738347038191,3.435e-05,104700.0,104690.0,0.40573832]
[1738347038421,3.435e-05,104700.0,104690.0,0.5220497]
[1738347039030,3.435e-05,104700.0,104690.0,0.5420497]
[1738347040333,3.435e-05,104700.0,104690.0,0.58170175]
[1738347041219,3.435e-05,104700.0,104690.0,0.58250918]
[1738347042750,3.435e-05,104700.0,104690.0,0.58110013]
[1738347043152,3.435e-05,104700.0,104690.0,0.58135591]
[1738347043923,3.435e-05,104700.0,104690.0,0.57135591]
[1738347046442,3.435e-05,104700.0,104690.0,0.55228769]
[1738347046683,3.435e-05,104700.0,104690.0,0.42940671]
[1738347047259,3.435e-05,104700.0,104690.0,0.55228769]
[1738347048659,0.12773435,104700.0,104690.0,0.55228769]
[1738347049069,0.12773435,104700.0,104690.0,0.42940671]
[1738347049746,0.12773435,104700.0,104690.0,0.53228769]
[1738347050012,0.12773435,104700.0,104690.0,0.55228769]
[1738347050139,0.12773435,104700.0,104690.0,0.42940671]
[1738347050594,0.12773435,104700.0,104690.0,0.55228769]
[1738347050794,0.12773435,104700.0,104690.0,0.42940671]
[1738347050993,0.12773435,104700.0,104690.0,0.55228769]
[1738347051212,0.12773435,104700.0,104690.0,0.46762371]
[1738347052379,0.12773435,104700.0,104690.0,0.37038055]
[1738347052603,0.12773435,104700.0,104690.0,0.35038055]
[1738347053015,0.12773435,104700.0,104690.0,0.3207285]
[1738347053345,0.12773435,104700.0,104690.0,0.35051934]
[1738347055736,0.12773435,104700.0,104690.0,0.3207285]
[1738347056170,0.22497751,104700.0,104690.0,0.27164088]
[1738347058296,0.22497751,104700.0,104690.0,0.27064088]
[1738347058745,0.22597751,104700.0,104690.0,0.27064088]
[1738347059771,0.22697751,104700.0,104690.0,0.27064088]
[1738347059988,0.22697751,104700.0,104690.0,0.36799764]
[1738347061942,0.22697751,104700.0,104690.0,0.27064088]
[1738347062572,0.22597751,104700.0,104690.0,0.27064088]
[1738347063321,0.12873435,104700.0,104690.0,0.27064088]
[1738347064081,0.12773435,104700.0,104690.0,0.27064088]
[1738347064320,0.12773435,104700.0,104690.0,0.27164088]
[1738347064770,0.12773435,104700.0,104690.0,0.26764088]
[1738347065009,0.12773435,104700.0,104690.0,0.30523765]
[1738347066189,0.43933927,104700.0,104690.0,0.30523765]
[1738347072783,0.39253927,104700.0,104690.0,0.30523765]
[1738347073325,0.31163927,104700.0,104690.0,0.30523765]
[1738347073533,0.31163927,104700.0,104690.0,0.42811863]
[1738347073974,0.31163927,104700.0,104690.0,0.45786715]
[1738347074218,0.31163927,104700.0,104690.0,0.55511031]
[1738347077809,3.435e-05,104700.0,104690.0,0.55511031]
[1738347078589,3.435e-05,104700.0,104690.0,0.56511031]
[1738347078816,3.435e-05,104700.0,104690.0,0.71361031]
[1738347080812,3.435e-05,104700.0,104690.0,0.7130256]
[1738347081049,0.11674435,104730.0,104720.0,0.26611998]
[1738347081280,0.11674435,104730.0,104720.0,0.33675059]
[1738347081520,0.11674435,104730.0,104720.0,0.33719896]
[1738347082195,0.11874435,104730.0,104720.0,0.46007994]
[1738347082673,0.11874435,104730.0,104720.0,0.45963157]
[1738347082905,0.11874435,104730.0,104720.0,0.46420937]
[1738347084413,0.11974435,104730.0,104720.0,0.46420937]
[1738347084655,0.11974435,104730.0,104720.0,0.34132839]
[1738347084867,0.11874435,104730.0,104720.0,0.34132839]
[1738347085155,0.11674435,104730.0,104720.0,0.34132839]
[1738347085469,0.11674435,104730.0,104720.0,0.34232839]
[1738347086624,0.11674435,104730.0,104720.0,0.46520937]
[1738347087140,0.11674435,104730.0,104720.0,0.34232839]
[1738347090232,0.11686625,104730.0,104720.0,0.34232839]
[1738347092480,0.11686625,104730.0,104720.0,0.46520937]
[1738347092918,0.0752219,104730.0,104720.0,0.46520937]
[1738347093118,0.0001219,104730.0,104720.0,0.46520937]
[1738347099865,0.0001219,104730.0,104720.0,0.34232839]
[1738347100689,0.0001219,104730.0,104720.0,0.46520937]
[1738347102677,0.0001219,104730.0,104720.0,0.46546515]
[1738347103939,0.0801219,104730.0,104720.0,0.46546515]
[1738347104155,0.0801219,104730.0,104720.0,0.34258417]
[1738347104356,0.0801219,104730.0,104720.0,0.46546515]
[1738347104942,0.0801219,104730.0,104720.0,0.34258417]
[1738347106243,0.0801219,104730.0,104720.0,0.46546515]
[1738347108238,0.0781219,104730.0,104720.0,0.4952212]
[1738347108467,0.0781219,104730.0,104720.0,0.37234022]
[1738347108693,0.0781219,104730.0,104720.0,0.4952212]
[1738347109172,0.35832682,104740.0,104730.0,0.143225]
[1738347109434,0.35832682,104740.0,104730.0,0.47109862]
[1738347109667,0.35832682,104740.0,104730.0,0.47458606]
[1738347110378,0.0001219,104740.0,104730.0,0.47458606]
[1738347110604,0.0011219,104740.0,104730.0,0.47458606]
[1738347111072,0.0021219,104740.0,104730.0,0.47458606]
[1738347111303,0.0021219,104740.0,104730.0,0.50436428]
[1738347111937,0.00203417,104740.0,104730.0,0.50436428]
[1738347114728,0.00203417,104740.0,104730.0,0.4193528]
[1738347119122,0.00203417,104740.0,104730.0,0.49972804]
[1738347120751,0.00203417,104740.0,104730.0,0.4193528]
[1738347120957,0.00203417,104740.0,104730.0,0.38957458]
[1738347121160,0.00203417,104740.0,104730.0,0.41936024]
[1738347121432,0.00203417,104740.0,104730.0,0.49973548]
[1738347121554,0.00203417,104740.0,104730.0,0.59697864]
[1738347122160,1.7e-07,104740.0,104730.0,0.67577864]
[1738347122367,1.7e-07,104740.0,104730.0,0.69577864]
[1738347122770,1.7e-07,104740.0,104730.0,0.75287864]
[1738347123195,0.01666667,104760.0,104750.0,0.143198]
[1738347123416,0.01666667,104760.0,104750.0,0.50382862]
[1738347123612,0.01666667,104760.0,104750.0,0.50287417]
[1738347124586,0.01666667,104760.0,104750.0,0.42349893]
[1738347124837,0.01666667,104760.0,104750.0,0.51160427]
[1738347125885,0.01666667,104760.0,104750.0,0.51602423]
[1738347126659,0.0001218,104760.0,104750.0,0.61326739]
[1738347126882,0.0001218,104760.0,104750.0,0.69296739]
[1738347127302,0.0001218,104760.0,104750.0,0.51602423]
[1738347127863,0.0761218,104760.0,104750.0,0.51602423]
[1738347129093,0.0001218,104760.0,104750.0,0.51602423]
[1738347130399,0.0001218,104760.0,104750.0,0.61326739]
[1738347134021,0.0001218,104760.0,104750.0,0.51602423]
[1738347134231,0.0831218,104760.0,104750.0,0.48623857]
[1738347135339,0.0001218,104760.0,104750.0,0.48623857]
[1738347135779,0.0001218,104760.0,104750.0,0.51592591]
[1738347137754,0.0001218,104760.0,104750.0,0.61316907]
[1738347140147,8e-07,104760.0,104750.0,0.66266907]
[1738347141742,7e-07,104770.0,104760.0,0.220784]
[1738347141954,7e-07,104770.0,104760.0,0.63016709]
[1738347142195,7e-07,104770.0,104760.0,0.6348332]
[1738347143312,7e-07,104770.0,104760.0,0.6448332]
[1738347143720,7e-07,104770.0,104760.0,0.6498332]
[1738347144057,7e-07,104770.0,104760.0,0.6458332]
[1738347144257,7e-07,104770.0,104760.0,0.6498332]
[1738347144479,7e-07,104770.0,104760.0,0.5622332]
[1738347145973,7e-07,104770.0,104760.0,0.5612332]
[1738347146347,7e-07,104770.0,104760.0,0.5622332]
[1738347154627,7e-07,104770.0,104760.0,0.55833621]
[1738347155472,7e-07,104770.0,104760.0,0.46109305]
[1738347155675,0.0791007,104770.0,104760.0,0.46109305]
[1738347160579,0.0791007,104770.0,104760.0,0.38077344]
[1738347160783,0.1254007,104770.0,104760.0,0.38077344]
[1738347162669,0.1254007,104770.0,104760.0,0.4652624]
[1738347164563,0.22264386,104770.0,104760.0,0.4652624]
[1738347164786,0.1254007,104770.0,104760.0,0.4652624]
[1738347165292,0.1254007,104770.0,104760.0,0.43557506]
[1738347166571,0.1254007,104770.0,104760.0,0.31313886]
[1738347166798,0.1254007,104770.0,104760.0,0.43557506]
[1738347169233,0.1254007,104770.0,104760.0,0.31313886]
[1738347169507,0.22264386,104770.0,104760.0,0.31313886]
[1738347169922,0.22264386,104770.0,104760.0,0.31213886]
[1738347170280,0.22264386,104770.0,104760.0,0.31313886]
[1738347170685,0.22264386,104770.0,104760.0,0.31213886]
[1738347170900,0.22264386,104770.0,104760.0,0.30747275]
[1738347171115,0.22264386,104770.0,104760.0,0.30804548]
[1738347171392,0.22264386,104770.0,104760.0,0.30904548]
[1738347181823,0.22264386,104770.0,104760.0,0.43148168]
[1738347182659,0.22264386,104770.0,104760.0,0.34730896]
[1738347183976,0.1254007,104770.0,104760.0,0.34730896]
[1738347184526,0.1254007,104770.0,104760.0,0.431482]
[1738347184946,0.1254007,104770.0,104760.0,0.30904564]
[1738347185153,0.22264386,104770.0,104760.0,0.30904564]
[1738347185361,0.21864386,104770.0,104760.0,0.14901251]
[1738347185557,0.36181386,104770.0,104760.0,0.00582851]
[1738347186649,0.36181386,104770.0,104760.0,0.00482851]
[1738347186837,0.36281386,104770.0,104760.0,0.00482851]
[1738347187051,0.36681386,104770.0,104760.0,0.00582851]
[1738347187255,0.191998,104750.0,104740.0,0.00033242]
[1738347187465,0.28924116,104750.0,104740.0,0.00033242]
[1738347187901,0.60084608,104750.0,104740.0,0.00033242]
[1738347188320,0.60084608,104750.0,104740.0,0.0017708]
[1738347188529,0.67604608,104750.0,104740.0,0.0017708]
[1738347189917,0.67604608,104750.0,104740.0,0.1449818]
[1738347190406,0.68204608,104750.0,104740.0,0.1459818]
[1738347190854,0.68204608,104750.0,104740.0,0.15265353]
[1738347192059,0.69104608,104750.0,104740.0,0.01044253]
[1738347192284,0.68204608,104750.0,104740.0,0.00944253]
[1738347192538,0.68204608,104750.0,104740.0,0.15265353]
[1738347192731,0.69104608,104750.0,104740.0,0.01044253]
[1738347193078,0.69104608,104750.0,104740.0,0.15365353]
[1738347194369,0.54784808,104750.0,104740.0,0.15365353]
[1738347196227,0.54784808,104750.0,104740.0,0.15221515]
[1738347196743,0.69104608,104750.0,104740.0,0.15221515]
[1738347198185,0.54784808,104750.0,104740.0,0.15221515]
[1738347198446,0.69104608,104750.0,104740.0,0.15221515]
[1738347198871,0.78840284,104750.0,104740.0,0.15221515]
[1738347199609,0.69104608,104750.0,104740.0,0.15221515]
[1738347200052,0.54784808,104750.0,104740.0,0.15221515]
[1738347201599,0.69104608,104750.0,104740.0,0.15221515]
[1738347202043,0.54784808,104750.0,104740.0,0.15221515]
[1738347203485,0.69104608,104750.0,104740.0,0.15221515]
[1738347203917,0.54784808,104750.0,104740.0,0.15221515]
[1738347204114,0.54784808,104750.0,104740.0,0.27465151]
[1738347204353,0.54784808,104750.0,104740.0,0.37200827]
[1738347204948,0.49904808,104750.0,104740.0,0.37200827]
[1738347205150,0.11224316,104750.0,104740.0,0.37200827]
[1738347205303,0.015,104750.0,104740.0,0.37200827]
[1738347205929,0.009,104750.0,104740.0,0.37100827]
[1738347206360,0.0788219,104770.0,104760.0,0.143184]
[1738347206561,0.17606506,104770.0,104760.0,0.27147139]
[1738347208168,0.18506506,104770.0,104760.0,0.27247139]
[1738347208370,0.19406506,104770.0,104760.0,0.27347139]
[1738347208571,0.19406506,104770.0,104760.0,0.15103503]
[1738347208788,0.18506506,104770.0,104760.0,0.27247139]
[1738347208987,0.17606506,104770.0,104760.0,0.27147139]
[1738347209209,0.18306506,104770.0,104760.0,0.27247139]
[1738347209338,0.19206506,104770.0,104760.0,0.37082815]
[1738347209535,0.19206506,104770.0,104760.0,0.27347139]
[1738347210494,0.18506506,104770.0,104760.0,0.27247139]
[1738347210810,0.19106506,104770.0,104760.0,0.27347139]
[1738347211444,0.19106506,104770.0,104760.0,0.00785103]
[1738347211633,0.33423506,104770.0,104760.0,0.15103503]
[1738347212057,0.19106506,104770.0,104760.0,0.27347139]
[1738347218092,0.19106506,104770.0,104760.0,0.15103503]
[1738347221047,0.19106506,104770.0,104760.0,0.27347139]
[1738347221400,0.19106506,104770.0,104760.0,0.27372738]
[1738347222549,0.0151219,104770.0,104760.0,0.39616374]
[1738347222761,0.0151219,104770.0,104760.0,0.4935205]
[1738347223166,0.0151219,104770.0,104760.0,0.37108414]
[1738347223752,0.0151219,104770.0,104760.0,0.27372738]
[1738347225506,0.0151219,104770.0,104760.0,0.39616374]
[1738347227493,0.0151219,104770.0,104760.0,0.39470096]
[1738347234208,0.0151219,104770.0,104760.0,0.44370096]
[1738347234943,0.0151219,104770.0,104760.0,0.44359913]
[1738347235175,0.0151219,104770.0,104760.0,0.54095589]
[1738347240281,0.0151219,104770.0,104760.0,0.57071725]
[1738347240713,0.0151219,104770.0,104760.0,0.56682667]
[1738347244697,0.0151219,104770.0,104760.0,0.64542667]
[1738347245158,0.0091219,104770.0,104760.0,0.74166983]
[1738347245275,0.0001219,104770.0,104760.0,0.74077166]
[1738347245476,0.0121219,104770.0,104760.0,0.74177166]
[1738347246653,0.0121219,104770.0,104760.0,0.74556348]
[1738347246839,0.0081219,104770.0,104760.0,0.74556348]
[1738347247036,0.0081219,104770.0,104760.0,0.74656348]
[1738347247698,0.0001219,104770.0,104760.0,0.74556348]
[1738347249219,0.0001219,104770.0,104760.0,0.74956348]
[1738347253932,0.0001219,104770.0,104760.0,0.78775448]
[1738347254182,9e-07,104770.0,104760.0,0.78775448]
[1738347264709,9e-07,104770.0,104760.0,0.78584548]
[1738347265286,9e-07,104770.0,104760.0,0.70724548]
[1738347265487,9e-07,104770.0,104760.0,0.56100232]
[1738347266601,9e-07,104770.0,104760.0,0.55717933]
[1738347268586,9e-07,104770.0,104760.0,0.56100558]
[1738347270154,9e-07,104770.0,104760.0,0.65824874]
[1738347280505,9e-07,104770.0,104760.0,0.65824874]
[1738347282531,9e-07,104770.0,104760.0,0.73894874]
[1738347284299,9e-07,104770.0,104760.0,0.79623874]
[1738347284511,9e-07,104770.0,104760.0,0.73894874]
[1738347286207,0.0771009,104770.0,104760.0,0.52281458]
[1738347286407,9e-07,104770.0,104760.0,0.52281458]
[1738347286809,9e-07,104770.0,104760.0,0.62005774]
[1738347288863,9e-07,104770.0,104760.0,0.77005774]
[1738347290690,9e-07,104770.0,104760.0,0.76617359]
[1738347299075,9e-07,104770.0,104760.0,0.85186896]
[1738347303197,9e-07,104770.0,104760.0,0.76617359]
[1738347311702,9e-07,104770.0,104760.0,0.79617359]
[1738347312566,9e-07,104770.0,104760.0,0.79217359]
[1738347312809,9e-07,104770.0,104760.0,0.79917359]
[1738347312992,0.0861498,104790.0,104780.0,0.53405007]
[1738347313229,0.0001218,104810.0,104800.0,0.293129]
[1738347313442,0.0001218,104810.0,104800.0,0.53402207]
[1738347313645,0.0001218,104810.0,104800.0,0.56878218]
[1738347314530,0.0011218,104810.0,104800.0,0.56878218]
[1738347315238,0.0001218,104810.0,104800.0,0.56878218]
[1738347315445,0.0001218,104810.0,104800.0,0.7633821]
[1738347317914,0.1327218,104810.0,104800.0,0.66613894]
[1738347318296,0.1327218,104810.0,104800.0,0.63837758]
[1738347318496,0.1327218,104810.0,104800.0,0.64437758]
[1738347318938,0.1327218,104810.0,104800.0,0.63837758]
[1738347319160,0.1327218,104810.0,104800.0,0.64437758]
[1738347320662,0.1327218,104810.0,104800.0,0.67410618]